bitfinex-derivatives/quotes_BTCF0:USTF0_20250810
["timestamp","ask_amount","ask_price","bid_price","bid_amount"]
[1754836730076,0.3304467,118820.0,118810.0,0.453254]
[1754836730282,0.3781267,118820.0,118810.0,0.453254]
[1754836733191,0.1317291,118810.0,118800.0,0.62349346]
[1754836733388,0.48999166,118810.0,118800.0,0.45516946]
[1754836733592,0.48999166,118810.0,118800.0,0.80739598]
[1754836733788,0.48999166,118810.0,118800.0,1.16819598]
[1754836734491,0.49199166,118810.0,118800.0,0.80739598]
[1754836734793,0.49199166,118810.0,118800.0,1.16819598]
[1754836735393,0.49199166,118810.0,118800.0,1.25236218]
[1754836736091,0.2058191,118810.0,118800.0,1.25336218]
[1754836736296,0.49199166,118810.0,118800.0,1.25336218]
[1754836737690,0.49199166,118810.0,118800.0,1.32885566]
[1754836738595,0.2058191,118810.0,118800.0,1.32885566]
[1754836738797,0.2058191,118810.0,118800.0,1.25336218]
[1754836741088,0.2058191,118810.0,118800.0,1.35905306]
[1754836741893,0.0861591,118810.0,118800.0,1.61499898]
[1754836742094,0.1105691,118810.0,118800.0,1.25336218]
[1754836742293,0.1105691,118810.0,118800.0,1.61499901]
[1754836742491,0.0861591,118810.0,118800.0,1.53953474]
[1754836742999,0.1105691,118810.0,118800.0,1.53953474]
[1754836743405,0.1105691,118810.0,118800.0,1.25336218]
[1754836744700,0.1105691,118810.0,118800.0,1.64522562]
[1754836745201,0.1105691,118810.0,118800.0,1.35905306]
[1754836745502,0.1105691,118810.0,118800.0,1.64522562]
[1754836747597,0.1105691,118810.0,118800.0,1.35905306]
[1754836747799,0.1105691,118810.0,118800.0,1.64522562]
[1754836748999,0.1105691,118810.0,118800.0,1.53953474]
[1754836750101,0.1105691,118810.0,118800.0,1.25336218]
[1754836750297,0.1105691,118810.0,118800.0,1.53953474]
[1754836752903,0.1105691,118810.0,118800.0,1.25336218]
[1754836753104,0.1105691,118810.0,118800.0,1.53953474]
[1754836755106,0.2040191,118810.0,118800.0,1.53953474]
[1754836755907,0.2040191,118810.0,118800.0,1.25336218]
[1754836756210,0.2040191,118810.0,118800.0,1.53953474]
[1754836757306,0.2040191,118810.0,118800.0,1.25336218]
[1754836758600,0.1581291,118810.0,118800.0,1.25336218]
[1754836758808,0.1363491,118810.0,118800.0,1.53953474]
[1754836759908,0.1822391,118810.0,118800.0,1.53953474]
[1754836761111,0.1822391,118810.0,118800.0,1.25336218]
[1754836761302,0.1822391,118810.0,118800.0,1.53953474]
[1754836762303,0.2040191,118810.0,118800.0,1.53953474]
[1754836762503,0.2040191,118810.0,118800.0,1.25336218]
[1754836770409,0.2040191,118810.0,118800.0,1.53953474]
[1754836772223,0.2040191,118810.0,118800.0,1.25336218]
[1754836775625,0.2040191,118810.0,118800.0,1.35929149]
[1754836776436,0.1105691,118810.0,118800.0,1.64546405]
[1754836777534,0.0861591,118810.0,118800.0,1.53953474]
[1754836777825,0.002,118810.0,118800.0,1.8257073]
[1754836778031,0.0861591,118810.0,118800.0,1.8257073]
[1754836778232,0.0861591,118810.0,118800.0,1.93162383]
[1754836778431,0.0861591,118810.0,118800.0,1.64545127]
[1754836780531,0.002,118810.0,118800.0,2.20062383]
[1754836780731,0.002,118810.0,118800.0,2.0947073]
[1754836780941,0.002,118810.0,118800.0,1.96023595]
[1754836781836,0.002,118810.0,118800.0,1.80853474]
[1754836782636,0.0861591,118810.0,118800.0,1.80853474]
[1754836782831,0.002,118810.0,118800.0,1.80853474]
[1754836783037,0.3600115,118830.0,118820.0,0.084152]
[1754836783237,0.3600115,118830.0,118820.0,1.51836456]
[1754836783530,0.1683985,118830.0,118820.0,1.33802119]
[1754836783738,0.1683985,118830.0,118820.0,1.62419375]
[1754836783929,0.1917085,118830.0,118820.0,1.592992]
[1754836784129,0.2882085,118830.0,118820.0,1.592992]
[1754836784433,0.58038106,118830.0,118820.0,0.8542523]
[1754836784631,0.58438106,118830.0,118820.0,1.2150523]
[1754836784836,0.58438106,118830.0,118820.0,0.8542523]
[1754836785226,0.58438106,118830.0,118820.0,0.96002245]
[1754836785434,0.2982085,118830.0,118820.0,1.40497455]
[1754836785635,0.2942085,118830.0,118820.0,0.96002245]
[1754836785935,0.2942085,118830.0,118820.0,0.96102245]
[1754836786328,0.57538106,118830.0,118820.0,0.96102245]
[1754836786925,0.2892085,118830.0,118820.0,0.8552523]
[1754836787340,0.57538106,118830.0,118820.0,0.8552523]
[1754836787638,0.57538106,118830.0,118820.0,0.001]
[1754836787840,0.57538106,118830.0,118820.0,0.79]
[1754836789344,0.57538106,118830.0,118820.0,0.86554004]
[1754836789743,0.93618106,118830.0,118820.0,0.79]
[1754836789938,0.93618106,118830.0,118820.0,0.86511879]
[1754836791439,1.40449306,118830.0,118820.0,0.07655879]
[1754836791743,1.40449306,118830.0,118820.0,0.79044]
[1754836792943,1.40449306,118830.0,118820.0,0.86599879]
[1754836793833,1.40449306,118830.0,118820.0,0.79044]
[1754836794443,1.40449306,118830.0,118820.0,0.79028]
[1754836794647,1.40449306,118830.0,118820.0,0.001]
[1754836794847,1.40449306,118830.0,118820.0,0.79024]
[1754836795546,1.1183205,118830.0,118820.0,0.79024]
[1754836795847,1.40449306,118830.0,118820.0,0.79024]
[1754836796841,1.40449306,118830.0,118820.0,0.001]
[1754836801438,1.10449306,118830.0,118820.0,1e-07]
[1754836807557,0.8183205,118830.0,118820.0,1e-07]
[1754836807755,1.10449306,118830.0,118820.0,1e-07]
[1754836812660,0.93618106,118830.0,118820.0,1e-07]
[1754836812861,0.6500085,118830.0,118820.0,1e-07]
[1754836813250,0.93618106,118830.0,118820.0,1e-07]
[1754836813748,1.10449306,118830.0,118820.0,1e-07]
[1754836815857,0.93618106,118830.0,118820.0,1e-07]
[1754836817857,0.6500085,118830.0,118820.0,1e-07]
[1754836818059,0.93618106,118830.0,118820.0,1e-07]
[1754836828059,0.57538106,118830.0,118820.0,1e-07]
[1754836828268,0.2892085,118830.0,118820.0,0.07555889]
[1754836828657,0.57538106,118830.0,118820.0,0.07555889]
[1754836829961,0.2892085,118830.0,118820.0,0.07555889]
[1754836830265,0.57538106,118830.0,118820.0,0.07555889]
[1754836830863,0.2658985,118830.0,118820.0,1e-07]
[1754836831065,0.2658985,118830.0,118820.0,0.10577025]
[1754836831561,0.2658985,118830.0,118820.0,0.07565483]
[1754836831956,0.2658985,118830.0,118820.0,0.86289483]
[1754836832157,0.2904285,118830.0,118820.0,0.86289483]
[1754836832662,0.57660106,118830.0,118820.0,0.86289483]
[1754836834667,0.2904285,118830.0,118820.0,0.86285855]
[1754836834866,0.57660106,118830.0,118820.0,0.7872401]
[1754836835061,0.57660106,118830.0,118820.0,0.86285141]
[1754836836671,0.57660106,118830.0,118820.0,1.22365141]
[1754836837556,0.2873785,118830.0,118820.0,1.30780351]
[1754836838271,0.2873785,118830.0,118820.0,1.2321922]
[1754836838474,0.2873785,118830.0,118820.0,1.1480401]
[1754836838774,0.57355106,118830.0,118820.0,1.1480401]
[1754836839175,0.57355106,118830.0,118820.0,0.7872401]
[1754836839473,0.57355106,118830.0,118820.0,1.1480401]
[1754836839675,0.2873785,118830.0,118820.0,1.1480401]
[1754836839862,0.57355106,118830.0,118810.0,0.48526848]
[1754836840063,0.2004363,118800.0,118790.0,0.06948]
[1754836840268,0.48660886,118800.0,118790.0,0.85652]
[1754836840575,0.48660886,118800.0,118790.0,1.24006]
[1754836840874,0.48660886,118800.0,118790.0,0.87926]
[1754836841270,0.48660886,118800.0,118790.0,0.8875114]
[1754836841464,0.48660886,118800.0,118790.0,0.87926]
[1754836841775,0.48660886,118800.0,118790.0,0.88758872]
[1754836841970,0.48660886,118800.0,118790.0,0.87926]
[1754836842157,0.48660886,118800.0,118790.0,0.88626]
[1754836842862,0.48660886,118800.0,118790.0,0.89026]
[1754836844378,0.2004363,118800.0,118790.0,0.89026]
[1754836844581,0.48660886,118800.0,118790.0,0.89026]
[1754836845972,0.1540663,118800.0,118790.0,0.89026]
[1754836846380,0.2004363,118800.0,118790.0,0.89026]
[1754836849079,0.2004363,118800.0,118790.0,0.96581494]
[1754836849274,0.48660886,118800.0,118790.0,0.96581494]
[1754836849681,0.2004363,118800.0,118790.0,0.96581494]
[1754836855681,0.0841663,118800.0,118790.0,1.6969609]
[1754836855991,0.1683251,118810.0,118800.0,0.1763863]
[1754836856176,0.1683251,118810.0,118800.0,0.73919256]
[1754836856373,0.1911451,118810.0,118800.0,0.8147475]
[1754836856579,0.1911451,118810.0,118800.0,0.4539475]
[1754836856783,0.1911451,118810.0,118800.0,0.16777494]
[1754836857179,0.2004251,118810.0,118800.0,0.16777494]
[1754836857388,0.2004251,118810.0,118800.0,0.53157494]
[1754836859380,0.2004251,118810.0,118800.0,0.46202]
[1754836859782,0.2004251,118810.0,118800.0,0.53752]
[1754836859986,0.2147951,118810.0,118800.0,0.46202]
[1754836860187,0.2467951,118810.0,118800.0,0.1767185]
[1754836860378,0.2467951,118810.0,118800.0,0.46202]
[1754836860986,0.2619051,118810.0,118800.0,0.46202]
[1754836861490,0.2845951,118810.0,118800.0,0.46202]
[1754836862287,0.2845951,118810.0,118800.0,0.5375274]
[1754836862476,0.2845951,118810.0,118800.0,0.1767274]
[1754836862682,0.2845951,118810.0,118800.0,0.5375274]
[1754836863291,0.2845951,118810.0,118800.0,0.1767274]
[1754836863785,0.2845951,118810.0,118800.0,0.1539874]
[1754836864087,0.57076766,118810.0,118800.0,0.9634874]
[1754836864784,0.57076766,118810.0,118800.0,0.9407074]
[1754836865196,0.57076766,118810.0,118800.0,0.9634474]
[1754836866588,0.93156766,118810.0,118800.0,0.9090674]
[1754836866788,0.93156766,118810.0,118800.0,0.9407274]
[1754836867588,0.2845951,118810.0,118800.0,0.9648674]
[1754836869390,0.93156766,118810.0,118800.0,0.9407274]
[1754836870788,0.93156766,118810.0,118800.0,0.9027274]
[1754836871496,0.93156766,118810.0,118800.0,0.9404274]
[1754836876791,0.2382251,118810.0,118800.0,0.9645674]
[1754836877097,0.2844551,118810.0,118800.0,0.88906]
[1754836877290,0.2844551,118810.0,118800.0,0.1025]
[1754836877599,0.2844551,118810.0,118800.0,0.99468432]
[1754836879298,0.2004251,118810.0,118800.0,0.9730663]
[1754836879492,0.2004251,118810.0,118800.0,0.8889]
[1754836879792,0.1683251,118810.0,118800.0,1.25923886]
[1754836880797,0.1683251,118810.0,118800.0,1.33482337]
[1754836880994,0.1683251,118810.0,118800.0,1.25923886]
[1754836881695,0.1683251,118810.0,118800.0,1.36502318]
[1754836881894,0.1683251,118810.0,118800.0,1.72582318]
[1754836882094,0.1683251,118810.0,118800.0,1.62003886]
[1754836882598,0.1683251,118810.0,118800.0,1.72582318]
[1754836883589,0.0841612,118810.0,118800.0,1.62003886]
[1754836883797,0.2524713,118820.0,118800.0,1.90091086]
[1754836883993,0.1683136,118820.0,118810.0,0.93043041]
[1754836884196,0.0841568,118820.0,118810.0,0.93043041]
[1754836884396,0.0841568,118820.0,118810.0,0.82463176]
[1754836885486,0.0841568,118820.0,118810.0,0.82963176]
[1754836886298,0.0841568,118820.0,118810.0,0.83163176]
[1754836886998,0.0841568,118820.0,118810.0,0.93732024]
[1754836889888,0.0841568,118820.0,118810.0,1.01275783]
[1754836890098,0.0841568,118820.0,118810.0,0.90706935]
[1754836890495,0.0841568,118820.0,118810.0,0.83163176]
[1754836890890,0.1069168,118820.0,118810.0,0.83163176]
[1754836892004,0.0841568,118820.0,118810.0,0.83163176]
[1754836892505,0.1069168,118820.0,118810.0,0.83163176]
[1754836893004,0.0841568,118820.0,118810.0,0.83163176]
[1754836898005,0.0841568,118820.0,118810.0,1.19243176]
[1754836899410,0.1091468,118820.0,118810.0,1.19243176]
[1754836901515,0.0841568,118820.0,118810.0,1.19243176]
[1754836902910,0.2525461,118830.0,118810.0,1.30494546]
[1754836903116,0.1683949,118830.0,118820.0,1.57346466]
[1754836903316,0.1683949,118830.0,118820.0,1.59246996]
[1754836903521,0.1683949,118830.0,118820.0,1.66785382]
[1754836904209,0.1933849,118830.0,118820.0,1.66785382]
[1754836904705,0.1683949,118830.0,118820.0,1.66785382]
[1754836905211,0.1933849,118830.0,118820.0,1.59246996]
[1754836906210,0.1933849,118830.0,118820.0,1.3062974]
[1754836906418,0.2890249,118830.0,118820.0,1.59246996]
[1754836906712,0.2890249,118830.0,118820.0,1.65957654]
[1754836907016,0.2890249,118830.0,118820.0,1.73499629]
[1754836907528,0.2890249,118830.0,118820.0,1.65957654]
[1754836907725,0.2900249,118830.0,118820.0,1.65957654]
[1754836909018,0.2900249,118830.0,118820.0,1.37340398]
[1754836909220,0.2900249,118830.0,118820.0,1.65957654]
[1754836910718,0.2900249,118830.0,118820.0,1.76526502]
[1754836911220,0.2900249,118830.0,118820.0,1.65957654]
[1754836911418,0.2900249,118830.0,118820.0,1.76526502]
[1754836913421,0.2900249,118830.0,118820.0,1.65957654]
[1754836913719,0.2900249,118830.0,118820.0,1.37340398]
[1754836913921,0.2900249,118830.0,118820.0,1.65957654]
[1754836914622,0.2564449,118830.0,118820.0,1.65957654]
[1754836915214,0.2900249,118830.0,118820.0,1.76531126]
[1754836921127,0.2564449,118830.0,118820.0,1.76531126]
[1754836922127,0.2564449,118830.0,118820.0,1.80052262]
[1754836922629,0.2900249,118830.0,118820.0,1.80052262]
[1754836928929,0.2900249,118830.0,118820.0,1.6947879]
[1754836931833,0.2900249,118830.0,118820.0,1.37340398]
[1754836932128,0.61140882,118830.0,118820.0,0.9219079]
[1754836932332,0.61140882,118830.0,118820.0,1.3454279]
[1754836932830,0.61040882,118830.0,118820.0,1.3725379]
[1754836933536,0.61040882,118830.0,118820.0,1.3775379]
[1754836934122,0.61040882,118830.0,118820.0,1.3765379]
[1754836936733,0.61040882,118830.0,118820.0,1.03088398]
[1754836937033,0.61040882,118830.0,118820.0,1.3522679]
[1754836937535,0.61040882,118830.0,118820.0,1.03088398]
[1754836937730,0.61040882,118830.0,118820.0,1.3522679]
[1754836937927,0.61040882,118830.0,118820.0,1.2828079]
[1754836938125,0.61040882,118830.0,118820.0,1.2705358]
[1754836938335,0.61040882,118830.0,118820.0,1.354688]
[1754836938738,0.2890249,118830.0,118820.0,1.739598]
[1754836940136,0.2890249,118830.0,118820.0,1.41821408]
[1754836940436,0.61040882,118830.0,118820.0,1.378798]
[1754836941036,0.60968882,118830.0,118820.0,1.378798]
[1754836941233,0.60968882,118830.0,118820.0,1.739598]
[1754836942340,0.60968882,118830.0,118820.0,1.73101945]
[1754836942535,0.60968882,118830.0,118820.0,1.37021945]
[1754836943332,0.60968882,118830.0,118820.0,1.2705358]
[1754836944337,0.60968882,118830.0,118820.0,1.2946458]
[1754836945242,0.60968882,118830.0,118820.0,1.378798]
[1754836945740,0.60968882,118830.0,118820.0,1.2946458]
[1754836946241,0.60968882,118830.0,118820.0,1.378798]
[1754836947140,0.48977882,118830.0,118820.0,1.378798]
[1754836947337,0.2013549,118830.0,118820.0,1.739598]
[1754836947535,0.2866249,118830.0,118820.0,1.739598]
[1754836947733,0.2866249,118830.0,118820.0,1.81517165]
[1754836948134,0.60800882,118830.0,118820.0,1.81517165]
[1754836949229,0.60800882,118830.0,118820.0,1.70690945]
[1754836949536,0.60800882,118830.0,118820.0,1.73101945]
[1754836950336,0.60800882,118830.0,118820.0,1.81517205]
[1754836950742,0.60800882,118830.0,118820.0,1.49378813]
[1754836950942,0.60800882,118830.0,118820.0,1.81517205]
[1754836951137,0.60800882,118830.0,118820.0,1.73101945]
[1754836951330,0.60800882,118830.0,118820.0,1.81517205]
[1754836954443,0.60800882,118830.0,118820.0,1.7395984]
[1754836956837,0.60800882,118830.0,118820.0,1.3787984]
[1754836957746,0.60800882,118830.0,118820.0,0.97326188]
[1754836958043,0.60800882,118830.0,118820.0,1.2946458]
[1754836960248,0.60800882,118830.0,118820.0,1.40045815]
[1754836961543,0.60800882,118830.0,118820.0,1.3787984]
[1754836962248,0.60800882,118830.0,118820.0,1.7395984]
[1754836962448,0.2866249,118830.0,118820.0,1.7395984]
[1754836962851,0.2866249,118830.0,118820.0,1.84539764]
[1754836963750,0.2866249,118830.0,118820.0,1.7395984]
[1754836964248,0.2533149,118830.0,118820.0,1.7395984]
[1754836964448,0.1917449,118830.0,118820.0,1.7395984]
[1754836965150,0.1917449,118830.0,118820.0,1.84540004]
[1754836969947,0.2010549,118830.0,118820.0,1.7395984]
[1754836970250,0.2145949,118830.0,118820.0,1.7395984]
[1754836970451,0.2485249,118830.0,118820.0,1.7395984]
[1754836970654,0.2635849,118830.0,118820.0,1.7395984]
[1754836973254,0.1683949,118830.0,118820.0,1.7395984]
[1754836980061,0.1683949,118830.0,118820.0,1.84540004]
[1754836980964,0.1683949,118830.0,118820.0,1.7395984]
[1754836981361,0.1683949,118830.0,118820.0,1.84540004]
[1754836982066,0.1683949,118830.0,118820.0,1.7395984]
[1754836982868,0.1683949,118830.0,118820.0,1.84540004]
[1754836983369,0.1683949,118830.0,118820.0,1.7395984]
[1754836983772,0.1927849,118830.0,118820.0,1.7395984]
[1754836987377,0.1927849,118830.0,118820.0,1.84540004]
[1754836988477,0.1927849,118830.0,118820.0,1.7395984]
[1754836989277,0.1927849,118830.0,118820.0,1.84540004]
[1754836990577,0.2502849,118830.0,118820.0,1.84540004]
[1754836995485,0.2502849,118830.0,118820.0,1.06132004]
[1754836995685,0.2878649,118830.0,118820.0,1.84320004]
[1754836996885,0.60924882,118830.0,118820.0,1.84320004]
[1754836997184,0.2878649,118830.0,118820.0,1.84320004]
[1754836997380,0.2878649,118830.0,118820.0,1.52181612]
[1754836997687,0.2878649,118830.0,118820.0,1.84320004]
[1754836997978,0.2878649,118830.0,118820.0,1.16101612]
[1754836998186,0.2878649,118830.0,118820.0,1.84320004]
[1754836998575,0.60924882,118830.0,118820.0,1.84320004]
[1754836998884,0.2878649,118830.0,118820.0,1.84320004]
[1754837002186,0.2878649,118830.0,118820.0,1.48240004]
[1754837002486,0.2878649,118830.0,118820.0,1.84320004]
[1754837003184,0.2176149,118830.0,118820.0,1.84320004]
[1754837003389,0.2020549,118830.0,118820.0,1.84320004]
[1754837003691,0.1927849,118830.0,118820.0,1.84320004]
[1754837010594,0.1927849,118830.0,118820.0,1.7373984]
[1754837011087,0.2396349,118830.0,118820.0,0.9555184]
[1754837011293,0.2878649,118830.0,118820.0,1.7367184]
[1754837011682,0.2878649,118830.0,118820.0,0.9555184]
[1754837011881,0.2878649,118830.0,118820.0,1.7366384]
[1754837013296,0.2878649,118830.0,118820.0,1.84227544]
[1754837016096,0.2878649,118830.0,118820.0,1.7366384]
[1754837016896,0.2878649,118830.0,118820.0,1.52087653]
[1754837017096,0.2878649,118830.0,118820.0,1.84226045]
[1754837018599,0.2176149,118830.0,118820.0,1.84226045]
[1754837024300,0.2176149,118830.0,118820.0,1.52087653]
[1754837024599,0.2176149,118830.0,118820.0,1.84226045]
[1754837025199,0.1927849,118830.0,118820.0,1.82325515]
[1754837025399,0.1927849,118830.0,118820.0,1.84225948]
[1754837026002,0.1683949,118830.0,118820.0,1.84225948]
[1754837027599,0.1917849,118830.0,118820.0,1.84225948]
[1754837029104,0.1683949,118830.0,118820.0,1.84225948]
[1754837029802,0.1683949,118830.0,118820.0,2.1636434]
[1754837030001,0.1683949,118830.0,118820.0,1.84225948]
[1754837030202,0.1683949,118830.0,118820.0,1.73663743]
[1754837030502,0.1683949,118830.0,118820.0,2.05802135]
[1754837031705,0.0001,118830.0,118820.0,2.05802135]
[1754837031906,0.3365703,118840.0,118830.0,0.1813855]
[1754837032112,0.3599603,118840.0,118830.0,1.26028778]
[1754837032605,0.2524259,118840.0,118830.0,1.18495334]
[1754837032806,0.2758159,118840.0,118830.0,1.18495334]
[1754837033203,0.2768159,118840.0,118830.0,1.26026878]
[1754837034911,0.2758159,118840.0,118830.0,1.26726878]
[1754837035308,0.2758159,118840.0,118830.0,0.62450094]
[1754837035609,0.2758159,118840.0,118830.0,1.19195334]
[1754837035810,0.168282,118840.0,118830.0,1.19195334]
[1754837036311,0.0841396,118840.0,118830.0,1.19195334]
[1754837036498,0.3365379,118850.0,118840.0,0.03468]
[1754837036702,0.3365379,118850.0,118840.0,1.71885599]
[1754837036902,0.3365379,118850.0,118840.0,1.74903073]
[1754837037104,0.2524019,118850.0,118840.0,1.74903073]
[1754837037608,0.0841318,118850.0,118840.0,1.74903073]
[1754837037808,0.0851318,118850.0,118840.0,1.64356092]
[1754837038214,0.0851318,118850.0,118840.0,1.65190171]
[1754837040715,0.0851318,118850.0,118840.0,1.29110171]
[1754837040917,0.0851318,118850.0,118840.0,2.01270171]
[1754837042710,0.0851318,118850.0,118840.0,2.11817152]
[1754837043918,0.0851318,118850.0,118840.0,2.01270171]
[1754837044625,0.001,118850.0,118840.0,1.69131779]
[1754837044918,0.001,118850.0,118840.0,2.01270171]
[1754837045816,0.001,118850.0,118840.0,2.11790152]
[1754837046019,0.0851299,118850.0,118840.0,2.11790152]
[1754837047333,0.0851299,118850.0,118840.0,2.38690152]
[1754837049421,0.001,118850.0,118840.0,2.38690152]
[1754837049622,0.0851299,118850.0,118840.0,2.38690152]
[1754837052421,0.0851299,118850.0,118840.0,2.0655176]
[1754837052723,0.0851299,118850.0,118840.0,2.38690152]
[1754837054513,0.001,118850.0,118840.0,2.38690152]
[1754837054718,0.0851299,118850.0,118840.0,2.40591063]
[1754837055125,0.0851299,118850.0,118840.0,2.08452671]
[1754837055326,0.0851299,118850.0,118840.0,2.40591063]
[1754837057419,0.0851299,118850.0,118840.0,2.40495063]
[1754837058235,0.0851299,118850.0,118840.0,1.9783669]
[1754837058419,0.1087599,118850.0,118840.0,2.29975082]
[1754837058617,0.1087599,118850.0,118840.0,1.9783669]
[1754837058817,0.1087599,118850.0,118840.0,2.29975082]
[1754837059222,0.1087599,118850.0,118840.0,2.03075082]
[1754837060531,0.1087599,118850.0,118840.0,1.25171082]
[1754837060731,0.2020799,118850.0,118840.0,1.6846869]
[1754837060922,0.2020799,118850.0,118840.0,2.02936082]
[1754837061425,0.1182099,118850.0,118840.0,1.7079769]
[1754837061629,0.1182099,118850.0,118840.0,2.02936082]
[1754837061830,0.1643799,118850.0,118840.0,2.02936082]
[1754837062030,0.1182099,118850.0,118840.0,2.02936082]
[1754837062424,0.1322199,118850.0,118840.0,1.7079769]
[1754837062624,0.1477899,118850.0,118840.0,1.7079769]
[1754837062833,0.2020799,118850.0,118840.0,2.02936082]
[1754837063534,0.1087599,118850.0,118840.0,2.02936082]
[1754837063729,0.0851299,118850.0,118840.0,2.02936082]
[1754837063923,0.0851299,118850.0,118840.0,1.7079769]
[1754837064123,0.1087599,118850.0,118840.0,2.02936082]
[1754837065531,0.1087599,118850.0,118840.0,2.13469532]
[1754837066032,0.2020799,118850.0,118840.0,1.8133114]
[1754837066434,0.2020799,118850.0,118840.0,2.13469532]
[1754837068236,0.2020799,118850.0,118840.0,1.0343914]
[1754837068427,0.2020799,118850.0,118840.0,2.13453532]
[1754837069338,0.2020799,118850.0,118840.0,1.8131514]
[1754837069533,0.2020799,118850.0,118840.0,2.13453532]
[1754837070028,0.2020799,118850.0,118840.0,1.8131514]
[1754837070229,0.2020799,118850.0,118840.0,2.13453532]
[1754837073530,0.2020799,118850.0,118840.0,2.02920082]
[1754837073743,0.2020799,118850.0,118840.0,2.13465292]
[1754837074029,0.2020799,118850.0,118840.0,2.13453292]
[1754837074334,0.1087599,118850.0,118840.0,2.13453292]
[1754837075334,0.1643799,118850.0,118840.0,2.13453292]
[1754837080541,0.2021699,118850.0,118840.0,1.813149]
[1754837080740,0.2021699,118850.0,118840.0,2.13453292]
[1754837081835,0.2021699,118850.0,118840.0,1.77373292]
[1754837082941,0.2021699,118850.0,118840.0,1.66828082]
[1754837083341,0.52593382,118850.0,118840.0,1.3466969]
[1754837083543,0.52593382,118850.0,118840.0,1.66808082]
[1754837085037,0.52593382,118850.0,118840.0,1.30728082]
[1754837085438,0.2045499,118850.0,118840.0,1.30728082]
[1754837085638,0.52593382,118850.0,118840.0,0.9858969]
[1754837085839,0.52593382,118850.0,118840.0,1.28395082]
[1754837086345,0.52593382,118850.0,118840.0,1.27360003]
[1754837087938,0.52593382,118850.0,118840.0,0.95221611]
[1754837088138,0.2045499,118850.0,118840.0,1.27360003]
[1754837088342,0.52593382,118850.0,118840.0,1.27360003]
[1754837089042,0.2045499,118850.0,118840.0,1.29697003]
[1754837089251,0.52593382,118850.0,118840.0,1.29697003]
[1754837090148,0.52593382,118850.0,118840.0,1.30523982]
[1754837090747,0.52593382,118850.0,118840.0,1.29697003]
[1754837092139,0.52593382,118850.0,118840.0,1.40240643]
[1754837094450,0.52593382,118850.0,118840.0,1.37903643]
[1754837094644,0.52593382,118850.0,118840.0,1.27360003]
[1754837094845,0.52593382,118850.0,118840.0,1.40240643]
[1754837096048,0.52593382,118850.0,118840.0,1.29697003]
[1754837096255,0.52593382,118850.0,118840.0,1.21283303]
[1754837096563,0.52593382,118850.0,118840.0,0.97558631]
[1754837096858,0.52593382,118850.0,118840.0,1.40240663]
[1754837097745,0.2045499,118850.0,118840.0,1.40240663]
[1754837097946,0.52593382,118850.0,118840.0,1.40240663]
[1754837098955,0.52593382,118850.0,118840.0,1.29697023]
[1754837100047,0.52593382,118850.0,118840.0,0.97558631]
[1754837100247,0.52593382,118850.0,118840.0,0.89144911]
[1754837100447,0.52593382,118850.0,118840.0,1.29697023]
[1754837101257,0.52593382,118850.0,118840.0,1.27360023]
[1754837101456,0.52593382,118850.0,118840.0,1.37902026]
[1754837101643,0.52593382,118850.0,118840.0,0.23772238]
[1754837101854,0.52593382,118850.0,118840.0,0.91879914]
[1754837102153,0.52593382,118850.0,118840.0,0.14067914]
[1754837102358,0.88673382,118850.0,118840.0,0.99404634]
[1754837102558,0.88673382,118850.0,118840.0,0.88862631]
[1754837103256,0.3608,118870.0,118840.0,1.40186351]
[1754837103467,0.00852661,118890.0,118880.0,0.0841089]
[1754837103468,5.095e-05,118890.0,118880.0,0.0841089]
[1754837103669,5.095e-05,118890.0,118880.0,2.22655674]
[1754837103964,5.095e-05,118890.0,118880.0,1.90517282]
[1754837104155,5.095e-05,118890.0,118880.0,2.33161686]
[1754837104961,0.1681686,118920.0,118890.0,0.0841019]
[1754837105162,0.0840833,118920.0,118890.0,1.08766974]
[1754837105458,0.2522585,118920.0,118890.0,1.27445418]
[1754837105661,0.1681709,118920.0,118890.0,1.27445418]
[1754837105958,0.0840881,118910.0,118890.0,1.27445418]
[1754837106164,0.2522585,118920.0,118890.0,1.02174894]
[1754837106368,0.2522585,118920.0,118890.0,1.09660152]
[1754837106659,0.0840886,118910.0,118890.0,0.99180768]
[1754837106861,0.1681789,118910.0,118890.0,0.9169551]
[1754837107164,0.0840777,118930.0,118890.0,0.9169551]
[1754837107352,0.1681813,118910.0,118890.0,0.7487391]
[1754837107557,0.2522738,118910.0,118890.0,1.2487391]
[1754837107861,0.09431957,118900.0,118890.0,1.03825657]
[1754837108065,0.11868957,118900.0,118890.0,0.96347034]
[1754837108262,0.11868957,118900.0,118890.0,1.06826418]
[1754837108566,0.12068957,118900.0,118890.0,1.03822971]
[1754837108869,0.09631957,118900.0,118890.0,1.32849847]
[1754837109166,0.12068957,118900.0,118890.0,1.32849847]
[1754837110066,0.12068957,118900.0,118890.0,1.2537391]
[1754837110268,0.11868957,118900.0,118890.0,1.2547391]
[1754837110568,0.01022477,118900.0,118890.0,1.32949847]
[1754837111063,0.09431947,118900.0,118890.0,0.82949847]
[1754837111370,0.09431947,118900.0,118890.0,0.7547391]
[1754837112462,0.11868947,118900.0,118890.0,0.82949847]
[1754837112662,0.09431947,118900.0,118890.0,0.54422971]
[1754837112867,0.11868947,118900.0,118890.0,0.54422971]
[1754837113171,0.11868947,118900.0,118890.0,0.46947034]
[1754837113671,0.11868947,118900.0,118890.0,0.7547391]
[1754837114164,0.11868947,118900.0,118890.0,0.81443725]
[1754837114365,0.11868947,118900.0,118890.0,0.7547391]
[1754837114562,0.11868947,118900.0,118890.0,0.46947034]
[1754837114765,0.21261947,118900.0,118890.0,0.52916328]
[1754837114971,0.49788823,118900.0,118890.0,0.38536844]
[1754837115164,0.49788823,118900.0,118890.0,1.16988844]
[1754837115365,0.49788823,118900.0,118890.0,0.38536844]
[1754837116071,0.49788823,118900.0,118890.0,0.02456844]
[1754837116260,0.49788823,118900.0,118890.0,0.006]
[1754837116467,0.96610423,118900.0,118890.0,1e-07]
[1754837116668,0.2024089,118880.0,118870.0,1.22376772]
[1754837116861,0.084116,118870.0,118860.0,0.42049304]
[1754837117067,0.202416,118870.0,118860.0,1.14512]
[1754837117472,0.202416,118870.0,118860.0,0.3608]
[1754837117667,0.156016,118870.0,118860.0,0.444923]
[1754837117867,0.188196,118870.0,118860.0,0.444923]
[1754837118371,0.202416,118870.0,118860.0,0.447923]
[1754837119666,0.202416,118870.0,118860.0,0.453923]
[1754837120777,0.48768476,118870.0,118860.0,0.3698]
[1754837121577,0.202416,118870.0,118860.0,0.3698]
[1754837122176,0.48768476,118870.0,118860.0,0.3698]
[1754837123187,0.65594077,118870.0,118860.0,0.3698]
[1754837123679,1.31674077,118870.0,118860.0,0.009]
[1754837123880,0.2024229,118860.0,118850.0,0.3608]
[1754837124085,0.48769166,118860.0,118850.0,0.3608]
[1754837124287,0.65596366,118860.0,118850.0,0.3608]
[1754837124984,0.65596366,118860.0,118850.0,0.3638]
[1754837125383,0.95596366,118860.0,118850.0,0.3638]
[1754837125584,0.95596366,118860.0,118850.0,0.003]
[1754837126276,0.95596366,118860.0,118850.0,0.008]
[1754837128792,1.27173166,118860.0,118850.0,0.008]